bitfinex-derivatives/quotes_ETHF0:USTF0_20250926
["timestamp","ask_amount","ask_price","bid_price","bid_amount"]
[1758876519768,0.76287503,3943.3,3943.2,4.06074356]
[1758876519967,0.54407503,3943.3,3943.2,4.06074356]
[1758876522061,0.54407503,3943.3,3943.2,1.50397]
[1758876522367,1.00013503,3943.3,3943.2,4.06074356]
[1758876523469,0.54407503,3943.3,3943.2,4.06074356]
[1758876523770,0.45605,3943.4,3943.3,1.24496]
[1758876524364,0.70008,3944.0,3943.9,0.7889]
[1758876524574,1.25560262,3944.0,3943.9,3.60467356]
[1758876524763,1.76370262,3944.0,3943.9,3.60467356]
[1758876528572,1.30772262,3944.0,3943.9,4.06066356]
[1758876529267,1.76370262,3944.0,3943.9,3.60467356]
[1758876530566,0.77391,3943.7,3943.6,42.10777356]
[1758876530768,1.20821,3943.7,3943.6,3.12117356]
[1758876530962,0.77391,3943.7,3943.6,3.60367356]
[1758876531272,0.45601,3943.7,3943.6,4.05970356]
[1758876532274,0.6748,3943.8,3943.7,0.7889]
[1758876532473,1.22753644,3943.8,3943.7,0.7889]
[1758876532775,1.22753644,3943.8,3943.7,1.24491]
[1758876532972,1.22753644,3943.8,3943.7,0.7889]
[1758876533276,1.22753644,3943.8,3943.7,1.24491]
[1758876534875,0.77153644,3943.8,3943.7,1.24491]
[1758876535072,0.2188,3943.8,3943.7,1.24491]
[1758876535281,0.456,3943.8,3943.7,1.24491]
[1758876535976,0.456,3943.8,3943.7,0.7889]
[1758876536378,0.45599,3943.9,3943.8,1.2449]
[1758876536570,0.45599,3943.9,3943.8,3.67461962]
[1758876536769,1.00880042,3943.9,3943.8,3.67461962]
[1758876537077,1.00880042,3943.9,3943.8,3.21861962]
[1758876537776,0.45599,3943.9,3943.8,3.21861962]
[1758876537980,0.45599,3943.9,3943.8,3.67461962]
[1758876538281,1.00891504,3943.9,3943.8,3.67461962]
[1758876538674,0.55292504,3943.9,3943.8,3.67461962]
[1758876538873,0.67477,3944.2,3944.1,1.24487]
[1758876539178,0.67477,3944.2,3944.1,3.67458962]
[1758876539179,1.22764021,3944.2,3944.1,3.67458962]
[1758876539378,0.77167021,3944.2,3944.1,3.67458962]
[1758876539570,0.77167021,3944.2,3944.1,5.84630924]
[1758876539571,0.55287021,3944.2,3944.1,5.84630924]
[1758876539773,0.7522,3943.1,3943.0,0.5644]
[1758876539982,0.7522,3943.1,3943.0,2.96061962]
[1758876540175,0.7522,3943.1,3943.0,3.21961962]
[1758876541477,0.3403,3943.5,3943.0,2.91661962]
[1758876541682,1.00958648,3943.4,3943.3,0.7667]
[1758876541877,1.78038648,3943.4,3943.3,0.7667]
[1758876542183,1.78038648,3943.4,3943.3,40.5417]
[1758876542788,1.78038648,3943.4,3943.3,42.71341962]
[1758876543084,1.78038648,3943.4,3943.3,3.19741962]
[1758876545079,1.78038648,3943.4,3943.3,2.43071962]
[1758876545886,1.78038648,3943.4,3943.3,2.63971962]
[1758876546284,1.78038648,3943.4,3943.3,2.96711962]
[1758876546685,0.55353648,3943.4,3943.3,3.18121962]
[1758876546986,1.28021,3944.6,3944.5,0.7505]
[1758876547184,1.28021,3944.6,3944.5,0.258]
[1758876547491,1.25491,3944.6,3944.5,0.258]
[1758876547884,1.25496,3944.2,3944.1,2.70811962]
[1758876548086,0.6863,3943.8,3943.7,0.7505]
[1758876548288,1.255,3943.8,3943.7,2.85381962]
[1758876548487,1.255,3943.8,3943.7,3.18121962]
[1758876548886,1.255,3943.8,3943.7,2.92221962]
[1758876549079,1.255,3943.8,3943.7,2.85381962]
[1758876549485,1.255,3943.8,3943.7,0.259]
[1758876549685,0.91564,3943.5,3943.4,2.92221962]
[1758876549889,0.91564,3943.5,3943.4,3.18121962]
[1758876549890,1.25504,3943.5,3943.4,3.18121962]
[1758876550187,1.38654,3943.5,3943.4,3.18121962]
[1758876550692,1.38654,3943.5,3943.4,2.43071962]
[1758876550894,1.25508,3943.1,3943.0,0.209]
[1758876551095,1.25508,3943.1,3943.0,0.5364]
[1758876551291,0.79552,3942.8,3942.7,39.549]
[1758876551590,0.79552,3942.8,3942.7,39.808]
[1758876552493,1.25518,3942.3,3942.2,0.209]
[1758876552697,0.92711,3942.0,3941.9,39.55]
[1758876552891,0.92711,3942.0,3941.8,2.17171962]
[1758876553096,0.799,3941.9,3941.8,2.38071962]
[1758876553299,0.799,3941.9,3941.8,2.63971962]
[1758876553795,0.799,3941.9,3941.8,3.18121962]
[1758876553992,0.45621,3942.1,3942.0,0.8847]
[1758876554190,0.45621,3942.1,3942.0,1.1437]
[1758876554387,1.25521,3942.1,3942.0,1.0095]
[1758876555190,0.799,3942.1,3941.5,0.1342]
[1758876555389,0.68659,3941.3,3941.2,0.3274]
[1758876555593,1.25529,3941.3,3941.2,0.7954]
[1758876555790,1.25529,3941.3,3941.2,1.0095]
[1758876555791,0.91589,3941.3,3941.2,1.0095]
[1758876555991,0.5697,3941.3,3941.2,3.18121962]
[1758876556297,0.68655,3941.7,3941.6,0.7505]
[1758876556598,0.45623,3941.9,3941.8,0.4231]
[1758876556797,0.91583,3941.9,3941.8,0.5864]
[1758876557096,1.25523,3941.9,3941.8,0.259]
[1758876557292,1.25526,3941.6,3941.5,2.38071962]
[1758876557492,1.25526,3941.6,3941.5,2.63971962]
[1758876557688,1.25526,3941.6,3941.5,0.259]
[1758876558094,1.25526,3941.6,3941.2,2.38071962]
[1758876558095,1.25529,3941.3,3941.2,2.38071962]
[1758876558286,1.25529,3941.3,3941.2,3.18121962]
[1758876559499,0.45629,3941.3,3941.2,3.18121962]
[1758876559888,0.45626,3941.6,3941.2,3.63751962]
[1758876560095,1.02596,3941.6,3941.5,2.92221962]
[1758876560299,1.02596,3941.6,3941.5,3.18121962]
[1758876561196,1.25526,3941.6,3941.5,3.18121962]
[1758876561698,1.25529,3941.3,3941.2,2.92221962]
[1758876561899,1.25529,3941.3,3941.2,3.18121962]
[1758876562496,1.25529,3941.3,3941.2,2.92221962]
[1758876562698,1.25529,3941.3,3941.2,0.209]
[1758876562897,1.25529,3941.3,3940.0,0.1342]
[1758876562898,0.68672,3940.2,3940.1,0.3274]
[1758876563099,1.25542,3940.2,3940.1,0.5364]
[1758876563293,1.25542,3940.2,3940.1,0.7954]
[1758876565311,1.25542,3940.2,3940.1,0.468]
[1758876565501,0.45644,3940.0,3939.9,2.17171962]
[1758876565704,0.3394,3939.6,3939.5,2.92221962]
[1758876565905,0.5697,3939.6,3939.5,3.18121962]
[1758876566206,0.2303,3939.6,3939.5,3.31541962]
[1758876567307,0.2303,3939.6,3939.5,3.05641962]
[1758876567507,0.2303,3939.6,3939.5,3.31541962]
[1758876568101,0.68679,3939.6,3939.5,3.31541962]
[1758876568297,1.02619,3939.6,3939.5,3.31541962]
[1758876569499,1.25549,3939.6,3939.5,3.18121962]
[1758876570104,1.25549,3939.6,3939.5,2.38071962]
[1758876570305,1.25549,3939.6,3939.5,2.43071962]
[1758876570801,0.45652,3939.3,3939.2,2.17171962]
[1758876571003,1.22472,3939.3,3939.2,2.65611962]
[1758876571408,1.22472,3939.3,3939.2,2.98801962]
[1758876571708,0.4297,3938.8,3938.7,0.4537]
[1758876571912,1.22478,3938.8,3938.7,1.0446]
[1758876573900,0.45657,3938.9,3938.8,0.7856]
[1758876574310,1.47982,3939.3,3939.2,0.7856]
[1758876574311,0.45653,3939.3,3939.2,0.7856]
[1758876574511,1.47964,3939.9,3939.3,0.3319]
[1758876574712,1.47964,3939.9,3939.2,2.43071962]
[1758876574713,1.78032576,3939.8,3939.7,0.5573]
[1758876575008,1.78032576,3939.8,3939.7,0.8163]
[1758876575208,1.78032576,3939.8,3939.7,1.0446]
[1758876575412,1.22467,3939.8,3939.7,1.0446]
[1758876575814,1.78506428,3939.8,3939.7,0.7127]
[1758876576309,1.22467,3939.8,3939.7,1.0446]
[1758876577306,1.7856337,3939.8,3939.7,1.0446]
[1758876582412,3.07118332,3939.8,3939.1,0.3319]
[1758876582617,1.22473,3939.2,3939.1,0.2254]
[1758876582914,1.7856937,3939.2,3939.1,0.2994]
[1758876583216,1.0174937,3939.2,3939.1,0.8596]
[1758876583412,1.2341937,3939.2,3939.1,0.8596]
[1758876584016,0.5609637,3939.2,3939.1,0.8596]
[1758876584216,0.45652,3939.3,3939.2,0.7856]
[1758876584414,0.45652,3939.3,3939.2,2.95731962]
[1758876584911,1.0189482,3939.3,3939.2,2.95731962]
[1758876586614,1.0189482,3939.3,3939.2,8.41384962]
[1758876586615,0.5624282,3939.3,3939.2,8.41384962]
[1758876587118,1.0189482,3939.3,3939.2,45.6356]
[1758876587320,1.3574482,3939.3,3939.2,40.6356]
[1758876587518,1.7871482,3939.3,3939.2,1.0446]
[1758876587820,1.7871482,3939.3,3939.2,0.259]
[1758876588018,1.7871482,3939.3,3939.2,0.4844]
[1758876588212,1.7871482,3939.3,3939.2,0.5573]
[1758876588415,1.22475,3939.1,3939.0,2.39711962]
[1758876588611,1.7871782,3939.1,3939.0,2.65611962]
[1758876590016,1.7871782,3939.1,3939.0,0.4844]
[1758876590219,1.7871782,3939.1,3939.0,1.1786]
[1758876590718,1.7871782,3939.1,3939.0,0.134]
[1758876590921,1.7871782,3939.1,3938.5,0.59082]
[1758876590922,1.2248,3938.6,3938.5,0.9198]
[1758876591221,1.7872282,3938.6,3938.5,1.0446]
[1758876592018,1.7872282,3938.6,3938.5,3.21631962]
[1758876592521,1.7872282,3938.6,3938.5,2.95731962]
[1758876592821,1.7872282,3938.6,3938.5,3.21631962]
[1758876594217,1.7872282,3938.6,3938.5,2.88441962]
[1758876594424,1.7872282,3938.6,3938.5,2.65611962]
[1758876594815,1.7872282,3938.6,3938.5,2.98801962]
[1758876595331,1.7872282,3938.6,3938.5,3.21631962]
[1758876596424,1.5742282,3938.6,3938.5,3.35031962]
[1758876596716,1.7872282,3938.6,3938.5,3.35031962]
[1758876597220,1.7872282,3938.6,3938.5,3.21631962]
[1758876597424,1.7872282,3938.6,3938.5,2.88441962]
[1758876597619,1.7872282,3938.6,3938.2,2.50361962]
[1758876597620,0.45664,3938.3,3938.2,2.50361962]
[1758876597823,0.45664,3938.3,3938.2,0.8163]
[1758876597824,1.7872682,3938.3,3938.2,0.8163]
[1758876598513,1.7872682,3938.3,3938.2,0.5573]
[1758876598719,1.7872682,3938.3,3938.2,0.8163]
[1758876600023,1.7872682,3938.3,3937.9,0.58269457]
[1758876600024,0.67337,3938.0,3937.9,0.58269457]
[1758876600219,1.9149982,3938.0,3937.9,0.02539457]
[1758876600418,1.9149982,3938.0,3937.4,39.598]
[1758876600419,0.91483,3937.5,3937.4,39.598]
[1758876600621,1.4772582,3937.5,3937.4,39.857]
[1758876601220,0.45677,3937.2,3937.0,0.4491]
[1758876601418,1.7832982,3937.2,3937.1,0.98795214]
[1758876602525,1.3265282,3937.2,3937.1,3.55180075]
[1758876602719,1.7832982,3937.2,3937.1,3.55180075]
[1758876602920,0.5624282,3937.2,3937.1,6.57242936]
[1758876603121,0.45664,3938.3,3938.0,0.1387]
[1758876603321,0.45664,3938.3,3938.2,3.31674861]
[1758876603924,1.22074,3938.3,3938.2,0.4378]
[1758876604128,0.5688,3938.0,3937.6,0.3151]
[1758876604423,0.45671,3937.7,3937.6,0.5267]
[1758876604624,1.22081,3937.7,3937.6,0.7857]
[1758876604830,1.22081,3937.7,3937.6,0.5267]
[1758876605032,1.22081,3937.7,3937.6,0.7529]
[1758876605227,1.22081,3937.7,3937.6,1.0119]
[1758876607333,0.45671,3937.7,3937.6,1.0136]
[1758876607532,1.22361,3937.7,3937.6,1.0136]
[1758876607831,1.22361,3937.7,3937.6,0.7874]
[1758876610236,1.22366,3937.3,3937.2,3.32704861]
[1758876610433,1.22366,3937.3,3937.2,1.0222]
[1758876615042,1.79952771,3937.3,3937.2,1.0222]
[1758876617437,1.2237,3936.9,3936.8,0.4464]
[1758876617633,1.2237,3936.9,3936.8,0.7054]
[1758876617843,1.79955769,3936.9,3936.8,0.7054]
[1758876618035,1.79955769,3936.9,3936.8,1.0222]
[1758876618437,1.26375769,3936.9,3936.8,1.0222]
[1758876618639,0.57585769,3936.9,3936.8,1.47901]
[1758876618942,0.48205,3937.4,3937.3,0.7632]
[1758876619140,0.48205,3937.4,3937.3,3.58604861]
[1758876619539,0.0253,3937.4,3937.3,4.04280861]
[1758876619735,0.0253,3937.4,3937.3,9.04280861]
[1758876620343,0.0253,3937.4,3937.3,6.47896]
[1758876620540,0.48204,3937.4,3937.3,6.21996]
[1758876620850,0.48204,3937.4,3937.3,41.09096]
[1758876621446,0.48204,3937.4,3937.3,0.7632]
[1758876621645,0.71314,3937.4,3937.3,1.0222]
[1758876621841,1.24894,3937.4,3937.3,0.7054]
[1758876622046,1.24894,3937.4,3937.3,0.4798]
[1758876622353,1.24894,3937.4,3937.3,0.2208]
[1758876622650,1.24894,3937.4,3937.3,0.4798]
[1758876623149,0.4711,3937.4,3937.0,0.3168]
[1758876623351,1.22368,3937.1,3937.0,0.7632]
[1758876623544,1.22368,3937.1,3937.0,1.0222]
[1758876624447,1.22368,3937.1,3937.0,0.7054]
[1758876624745,1.22373,3936.7,3936.6,0.2208]
[1758876624943,1.22373,3936.7,3936.6,0.4798]
[1758876625139,1.22373,3936.7,3936.3,3.32704861]
[1758876625140,1.22376,3936.4,3936.3,3.32704861]
[1758876625356,1.22376,3936.4,3936.3,3.58604861]
[1758876627055,1.22376,3936.4,3936.3,3.32704861]
[1758876627254,1.22376,3936.4,3936.3,1.0222]
[1758876627444,1.22376,3936.4,3936.3,0.2208]
[1758876627649,1.22376,3936.4,3936.3,0.4798]
[1758876628758,1.2238,3936.1,3936.0,3.10144861]
[1758876629051,0.7669,3936.1,3935.7,0.3168]
[1758876629249,1.22383,3935.8,3935.7,0.5376]
[1758876629452,1.22383,3935.8,3935.7,0.7966]
[1758876630852,1.79751547,3935.8,3935.7,1.0222]
[1758876631059,1.79751547,3935.8,3935.7,1.47914]
[1758876631060,0.57368547,3935.8,3935.7,1.47914]
[1758876631359,0.48232,3935.9,3935.8,0.7653]
[1758876631556,0.48232,3935.9,3935.8,3.32914861]
[1758876631756,1.05586422,3935.9,3935.8,3.32914861]
[1758876632755,1.28306422,3935.9,3935.8,0.7653]
[1758876632956,1.28306422,3935.9,3935.8,3.32914861]
[1758876633358,1.28306422,3935.9,3935.8,3.58814861]
[1758876633760,0.59894422,3935.9,3935.8,4.04507861]
[1758876634260,0.0254,3935.9,3935.8,4.04507861]
[1758876634760,1.35229,3937.0,3936.9,0.7653]
[1758876634959,1.92574572,3937.0,3936.9,1.0243]
[1758876635157,0.6841,3936.1,3936.0,3.45574861]
[1758876635365,1.2259,3936.1,3936.0,3.58814861]
[1758876635552,1.2259,3936.1,3936.0,3.32914861]
[1758876635760,1.80227594,3936.1,3936.0,3.58814861]
[1758876637659,1.80227594,3936.1,3936.0,3.32914861]
[1758876637856,1.80227594,3936.1,3936.0,3.58814861]
[1758876638259,1.80227594,3936.1,3936.0,3.71474861]
[1758876639065,1.80227594,3936.1,3936.0,3.58814861]
[1758876639660,1.80227594,3936.1,3936.0,3.32914861]
[1758876639857,1.80227594,3936.1,3936.0,3.58814861]
[1758876640062,1.80227594,3936.1,3936.0,1.0243]
[1758876640262,1.80227594,3936.1,3936.0,0.4703]
[1758876640763,1.80227594,3936.1,3936.0,0.259]
[1758876641662,1.80227594,3936.1,3936.0,0.4703]
[1758876642361,1.80227594,3936.1,3936.0,0.8143]
[1758876643067,1.80227594,3936.1,3936.0,1.0243]
[1758876643371,1.26047594,3936.1,3936.0,3.71474861]
[1758876643573,1.03327594,3936.1,3936.0,3.71474861]
[1758876645070,1.26047594,3936.1,3936.0,3.71474861]
[1758876645259,1.80227594,3936.1,3936.0,1.0243]
[1758876645463,1.80227594,3936.1,3936.0,0.7653]
[1758876645674,1.80227594,3936.1,3936.0,0.6803]
[1758876645866,1.80227594,3936.1,3936.0,0.4703]
[1758876646573,1.80227594,3936.1,3936.0,0.2113]
[1758876646773,1.34537594,3936.1,3936.0,0.259]
[1758876647271,0.6842,3935.3,3935.2,2.98514861]
[1758876647471,1.2597781,3935.3,3935.2,3.24414861]
[1758876647671,1.2597781,3935.3,3935.2,3.58814861]
[1758876648175,1.2597781,3935.3,3935.2,3.32914861]
[1758876648364,0.6842,3935.3,3935.2,3.58814861]
[1758876648563,1.259707,3935.3,3935.2,3.58814861]
[1758876649074,1.589507,3935.3,3935.2,3.58814861]
[1758876649974,1.801507,3935.3,3935.2,3.58814861]
[1758876650574,1.259707,3935.3,3935.2,3.58814861]
[1758876651865,0.575507,3935.3,3935.2,3.58814861]
[1758876652066,0.575507,3935.3,3935.2,4.04514861]
[1758876652576,0.45698,3935.4,3935.2,3.32914861]
[1758876652776,0.45698,3935.4,3935.3,0.7653]
[1758876652975,0.68418,3935.4,3935.3,1.0243]
[1758876653177,1.25975237,3935.4,3935.3,1.0243]
[1758876653772,1.03255237,3935.4,3935.3,1.48129]
[1758876653972,0.57557237,3935.4,3935.3,1.48129]
[1758876654278,0.45696,3935.6,3935.5,0.8919]
[1758876654467,1.02995219,3935.6,3935.5,3.71474861]
[1758876655771,1.25715219,3935.6,3935.5,3.71474861]
[1758876655966,1.79895219,3935.6,3935.5,3.71474861]
[1758876657773,1.46915219,3935.6,3935.5,3.71474861]
[1758876658082,1.25715219,3935.6,3935.5,3.71474861]
[1758876658582,1.58695219,3935.6,3935.5,3.33194317]
[1758876660078,1.25715219,3935.6,3935.5,3.33194317]
[1758876660480,1.60285219,3935.6,3935.5,3.33194317]
[1758876660679,1.25715219,3935.6,3935.5,3.33194317]
[1758876660878,0.57299219,3935.6,3935.5,3.78890317]
[1758876661078,0.4569,3936.1,3936.0,0.9152]
[1758876661284,0.6853,3936.1,3936.0,1.1742]
[1758876661579,1.59938929,3936.1,3936.0,1.1742]
[1758876661775,0.56838929,3936.1,3936.0,1.1742]
[1758876661983,1.02528929,3936.1,3936.0,1.1742]
[1758876662279,1.47758929,3936.1,3936.0,3.35524317]
[1758876662481,1.02528929,3936.1,3936.0,3.35524317]
[1758876662881,0.56838929,3936.1,3936.0,3.81215317]
[1758876663076,0.56838929,3936.1,3936.0,10.99319634]
[1758876663273,0.45681,3936.8,3936.7,0.7822]
[1758876663578,0.45681,3936.8,3936.7,3.67907317]
[1758876663579,0.56458842,3936.8,3936.7,3.67907317]
[1758876663881,0.56458842,3936.8,3936.7,3.22224317]
[1758876664089,0.56458842,3936.8,3936.7,3.67907317]
[1758876664289,0.45673,3937.6,3937.5,0.9152]
[1758876664579,0.45672,3937.6,3937.5,0.3602]
[1758876664774,0.7486,3937.2,3937.1,2.73394317]
[1758876664973,0.7486,3937.2,3937.1,0.2272]
[1758876665175,1.2054,3937.0,3936.9,0.2272]
[1758876665374,1.2054,3937.0,3936.9,0.8119]
[1758876665572,1.2054,3937.0,3936.9,1.032]
[1758876666176,1.0242,3937.0,3936.8,2.18104317]
[1758876666377,0.7486,3936.9,3936.8,2.40824317]
[1758876666677,0.7486,3936.9,3936.8,2.66724317]
[1758876666877,0.4346,3936.4,3936.3,39.626]
[1758876667184,0.7486,3936.4,3936.3,42.39174317]
[1758876667480,0.99293,3936.7,3936.6,0.773]
[1758876667680,0.314,3937.1,3936.7,0.3257]
[1758876667873,0.5361,3937.1,3937.0,0.773]
[1758876668183,1.20538,3937.1,3937.0,3.21304317]
[1758876669492,0.45668,3938.0,3937.6,0.5529]
[1758876669680,0.4567,3937.8,3937.7,1.032]
[1758876669880,1.2053,3937.8,3937.7,0.773]
[1758876670180,1.2053,3937.8,3937.7,0.259]
[1758876672284,1.33813,3937.5,3937.4,2.18104317]
[1758876672485,0.4346,3936.7,3936.6,0.2272]
[1758876672678,0.4346,3936.7,3936.6,0.4862]
[1758876672881,0.7486,3936.7,3936.6,0.2272]
[1758876673083,0.2221,3936.3,3936.2,2.18104317]
[1758876673285,0.67902,3935.9,3935.8,0.4473]
[1758876673489,0.99302,3935.9,3935.8,2.62834317]
[1758876673685,1.20552,3935.9,3935.8,2.88734317]
[1758876673989,1.20552,3935.9,3935.8,3.21304317]
[1758876674681,0.7486,3935.9,3935.3,7.75034705]
[1758876674883,0.89157,3935.5,3935.4,0.8119]
[1758876675088,0.4346,3935.5,3935.4,1.032]
[1758876675391,0.7486,3935.5,3935.4,1.032]
[1758876675982,0.4346,3935.5,3935.4,1.032]
[1758876677190,0.314,3936.3,3935.7,0.4473]
[1758876677392,1.75708975,3936.2,3936.1,0.2272]
[1758876677585,0.77370975,3936.2,3936.1,8.78234705]
[1758876677894,0.0254,3936.4,3936.2,0.3257]
[1758876678088,0.0254,3936.4,3936.3,1.032]
[1758876678587,0.67893,3936.7,3936.6,0.773]
[1758876678781,1.23069329,3936.7,3936.6,1.032]
[1758876678982,0.55176329,3936.7,3936.6,1.032]
[1758876679391,0.45677,3937.2,3937.1,0.773]
[1758876679592,0.45677,3937.2,3937.1,1.032]
[1758876679789,0.55185628,3937.2,3937.1,1.032]
[1758876680189,1.93825018,3938.5,3937.9,0.4473]
[1758876680190,0.45668,3938.0,3937.9,0.4473]
[1758876680489,0.67877,3938.1,3938.0,0.5856]
[1758876680794,0.67877,3938.1,3938.0,0.4473]
[1758876680795,1.54459321,3938.1,3938.0,0.4473]
[1758876680994,1.30042321,3938.1,3938.0,0.773]
[1758876681294,0.55182321,3938.1,3938.0,0.9113]
[1758876681485,0.55182321,3938.1,3938.0,1.1703]
[1758876682489,0.0253,3938.5,3938.4,0.4473]
[1758876682686,0.0253,3938.5,3938.4,1.032]
[1758876682886,0.57687259,3938.5,3938.4,1.032]
[1758876683691,0.0253,3938.5,3938.4,1.032]
[1758876684494,0.45657,3938.9,3938.8,0.773]
[1758876684694,0.45657,3938.9,3938.8,1.032]
[1758876684997,0.66911,3938.6,3938.5,0.2272]
[1758876685185,1.20521,3938.6,3938.5,0.8119]
[1758876685588,1.20521,3938.6,3938.5,0.2272]
[1758876685790,0.89124,3938.3,3938.2,0.773]
[1758876685989,1.20524,3938.3,3938.2,1.032]
[1758876686386,1.20524,3938.3,3938.2,0.773]
[1758876686592,1.20524,3938.3,3938.2,1.032]
[1758876687504,1.20524,3938.3,3938.2,0.773]
[1758876687793,1.20529,3937.9,3937.8,0.773]
[1758876687997,0.45669,3937.9,3937.8,1.032]
[1758876688296,0.67877,3938.1,3938.0,0.4473]
[1758876688494,0.67877,3938.1,3938.0,1.032]
[1758876688691,1.20527,3938.1,3938.0,1.032]
[1758876689092,1.20527,3938.1,3938.0,0.2272]
[1758876689298,1.2053,3937.8,3937.7,0.5529]
[1758876689599,1.2053,3937.8,3937.7,0.8119]
[1758876690600,1.2053,3937.8,3937.7,0.773]
[1758876690895,1.2053,3937.8,3937.7,1.032]
[1758876693992,1.2053,3937.8,3937.7,0.4862]
[1758876694198,1.2053,3937.8,3937.7,0.259]
[1758876694899,0.8913,3937.8,3937.7,0.7558]
[1758876695106,1.01912,3938.5,3938.4,0.5456]
[1758876695402,1.2285412,3938.5,3938.4,1.0138]
[1758876695602,0.66942,3938.5,3938.4,1.0138]
[1758876695799,0.45662,3938.5,3938.4,1.0138]
[1758876695997,0.66942,3938.5,3938.4,1.0138]
[1758876696201,1.90622863,3938.5,3938.4,0.47]
[1758876696395,0.3272,3938.4,3938.1,0.211]
[1758876696598,1.21355,3938.2,3938.1,0.211]
[1758876696797,1.21355,3938.2,3938.1,0.8046]
[1758876697095,1.2136,3937.8,3937.7,8.50614705]
[1758876697302,1.2136,3937.8,3937.7,0.47]
[1758876697896,0.54,3938.2,3938.1,0.4212]
[1758876698201,0.54,3938.2,3938.1,1.0148]
[1758876698403,0.66945,3938.2,3938.1,1.0148]
[1758876698603,1.21355,3938.2,3938.1,1.0148]
[1758876698999,1.21355,3938.2,3938.1,0.47]
[1758876699503,0.2128,3938.2,3938.1,1.0148]
[1758876699703,0.45663,3938.4,3938.3,0.4212]
[1758876700004,0.99662,3938.5,3938.4,0.7558]
[1758876700205,0.56170407,3938.5,3938.4,0.7558]
[1758876700501,0.0253,3938.7,3938.6,0.7558]
[1758876700707,0.69469,3938.7,3938.6,1.0148]
[1758876700902,0.7822,3938.7,3938.2,0.3346]
[1758876701097,1.21354,3938.3,3938.2,0.7558]
[1758876701297,1.21354,3938.3,3938.2,0.259]
[1758876701497,1.21358,3938.0,3937.9,0.7558]
[1758876701808,1.21358,3938.0,3937.9,1.0148]
[1758876702905,0.7569,3938.0,3937.9,1.0148]
[1758876703112,0.4297,3938.0,3937.9,1.0148]
[1758876703310,0.88638,3938.0,3937.9,1.0148]
[1758876703807,0.3272,3938.3,3938.0,0.1368]
[1758876704002,0.3525,3938.7,3938.6,0.211]
[1758876704202,0.7822,3938.7,3938.6,0.8046]
[1758876704403,1.47329669,3938.7,3938.6,1.0148]
[1758876704711,1.80049669,3938.7,3938.6,0.6802]
[1758876705011,1.80049669,3938.7,3938.6,0.47]
[1758876706010,1.80049669,3938.7,3938.6,0.259]
[1758876706211,1.21355,3938.2,3938.1,0.211]
[1758876706514,0.91508,3938.0,3937.9,39.9416]
[1758876706812,1.77636482,3938.0,3937.9,0.8046]
[1758876707414,1.90756482,3938.0,3937.9,0.47]
[1758876707808,1.45088482,3938.0,3937.6,0.3346]
[1758876708011,0.54,3937.7,3937.6,0.7558]
[1758876708315,0.1312,3938.0,3937.6,0.7558]
[1758876708316,0.45668,3938.0,3937.9,0.7558]
[1758876708508,1.02059813,3938.0,3937.9,1.0148]
[1758876709414,0.56391813,3938.0,3937.9,1.47149]
[1758876710319,0.56391813,3938.0,3937.9,6.47149]
[1758876711710,0.45661,3938.6,3938.4,0.45662]
[1758876711915,0.45661,3938.6,3938.5,1.1516]
[1758876712117,0.0253,3938.7,3938.6,0.7558]
[1758876712314,1.80253345,3938.7,3938.6,0.7558]
[1758876712513,1.80253345,3938.7,3938.6,1.0148]
[1758876714827,1.25843345,3938.7,3938.6,1.0148]
[1758876715124,1.80253345,3938.7,3938.6,1.0148]
[1758876715636,1.77723345,3938.7,3938.6,1.0148]
[1758876716125,0.77654345,3938.7,3938.6,1.0148]
[1758876716432,0.56374345,3938.7,3938.6,1.0148]
[1758876716625,0.77654345,3938.7,3938.6,1.0148]
[1758876716828,0.77654345,3938.7,3938.6,1.47141]
[1758876717028,0.56374345,3938.7,3938.6,1.47141]
[1758876717230,0.56374345,3938.7,3938.6,1.0148]
[1758876717428,1.77723345,3938.7,3938.6,0.47]
[1758876717625,1.14152,3938.6,3938.2,0.4212]
[1758876717927,0.7569,3938.3,3938.2,0.7558]
[1758876718125,1.56038345,3938.3,3938.2,1.0148]
[1758876718429,1.23318345,3938.3,3938.2,1.0148]
[1758876718630,1.77728345,3938.3,3938.2,0.211]
[1758876718830,1.77728345,3938.3,3937.7,39.603]
[1758876718831,0.7569,3937.8,3937.7,39.603]
[1758876719026,1.32064345,3937.8,3937.7,39.862]
[1758876719222,1.77734345,3937.8,3937.7,39.862]
[1758876719428,0.4297,3937.3,3937.2,0.211]
[1758876719626,1.77740345,3937.3,3937.2,0.8046]
[1758876720228,1.32064345,3937.3,3937.2,0.8046]
[1758876720435,1.32064345,3937.3,3937.2,1.0148]
[1758876721930,0.99344345,3937.3,3937.2,1.0148]
[1758876722438,0.56374345,3937.3,3937.2,1.0148]
[1758876722731,0.77314345,3937.3,3937.2,1.0148]
[1758876722925,1.32224345,3937.3,3937.2,1.0148]
[1758876723127,1.32224345,3937.3,3937.2,0.5456]
[1758876723428,1.2153,3936.9,3936.8,0.4512]
[1758876723630,1.2153,3936.9,3936.8,1.0327]
[1758876724725,1.2153,3936.9,3936.5,0.1368]
[1758876724726,0.79724,3936.6,3936.5,40.0727]
[1758876724931,0.79724,3936.6,3936.5,39.607]
[1758876725232,1.23446,3936.4,3936.3,0.49523777]
[1758876725431,1.23446,3936.4,3936.3,1.08313777]
[1758876726131,0.45681,3936.8,3936.4,0.3289]
[1758876726437,0.45679,3937.0,3936.9,1.2339]
[1758876726637,0.3404,3937.4,3937.1,0.4482]
[1758876726829,0.56164164,3937.3,3937.2,0.7072]
[1758876727337,1.01840164,3937.3,3937.2,1.0361]
[1758876727629,0.56164164,3937.3,3937.2,1.0361]
[1758876727828,0.4567,3937.8,3937.4,0.45674]
[1758876728032,0.3404,3938.2,3937.7,1.23381]
[1758876728332,1.5727934,3938.1,3938.0,0.7771]
[1758876728528,1.5727934,3938.1,3938.0,1.0361]
[1758876728731,0.5616334,3938.1,3938.0,1.1678]